[Event "Early-Titled-Tuesday-Blitz-April-23-2024"]
[Site "Chess.com"]
[Date "2024.04.23"]
[Round "11"]
[White "Acva-Alenok"]
[Black "LamaChampetre"]
[Result "1-0"]
[WhiteElo "2353"]
[BlackElo "2230"]
[TimeControl "180+1"]
[EndTime "10:11:42 PDT"]
[Termination "Acva-Alenok won on time"]

1. d4 {[%clk 0:03:00.9]} 1... Nf6 {[%clk 0:02:52]} 2. c4 {[%clk 0:03:01.4]} 2...
g6 {[%clk 0:02:52.5]} 3. Nf3 {[%clk 0:03:01.1]} 3... Bg7 {[%clk 0:02:52.6]} 4.
g3 {[%clk 0:03:01.7]} 4... d5 {[%clk 0:02:52.5]} 5. cxd5 {[%clk 0:03:01.1]} 5...
Nxd5 {[%clk 0:02:53.4]} 6. Bg2 {[%clk 0:02:47.2]} 6... Nb6 {[%clk 0:02:50.8]} 7.
O-O {[%clk 0:02:45]} 7... Nc6 {[%clk 0:02:49.9]} 8. e3 {[%clk 0:02:25]} 8... e5
{[%clk 0:02:46.9]} 9. dxe5 {[%clk 0:02:20.7]} 9... Qxd1 {[%clk 0:02:44.1]} 10.
Rxd1 {[%clk 0:02:21.2]} 10... Nxe5 {[%clk 0:02:43.4]} 11. Nd4 {[%clk 0:01:48.6]}
11... O-O {[%clk 0:02:32.1]} 12. Nc3 {[%clk 0:01:46.8]} 12... c6 {[%clk
0:02:15.9]} 13. b4 {[%clk 0:01:46.1]} 13... Nbc4 {[%clk 0:02:01.4]} 14. b5
{[%clk 0:01:26.2]} 14... Bg4 {[%clk 0:01:57.4]} 15. Rf1 {[%clk 0:00:53.9]} 15...
c5 {[%clk 0:01:43.1]} 16. Nde2 {[%clk 0:00:38.5]} 16... Bf3 {[%clk 0:00:22.8]}
17. Rb1 {[%clk 0:00:34.4]} 17... Rab8 {[%clk 0:00:17.9]} 18. a4 {[%clk
0:00:30.1]} 18... b6 {[%clk 0:00:18.1]} 19. Nf4 {[%clk 0:00:26.1]} 19... Rfd8
{[%clk 0:00:12.9]} 20. Nfd5 {[%clk 0:00:20.6]} 20... Bxg2 {[%clk 0:00:12.2]} 21.
Kxg2 {[%clk 0:00:21.5]} 21... Nd3 {[%clk 0:00:10.6]} 22. Kg1 {[%clk 0:00:06.7]}
22... Rd7 {[%clk 0:00:10.5]} 23. e4 {[%clk 0:00:05.6]} 23... Rbd8 {[%clk
0:00:10.4]} 24. Bg5 {[%clk 0:00:04.9]} 24... f6 {[%clk 0:00:08]} 25. Bxf6 {[%clk
0:00:03.9]} 25... Bxf6 {[%clk 0:00:06.1]} 26. Nxf6+ {[%clk 0:00:04.8]} 26... Kf7
{[%clk 0:00:06.4]} 27. Nxd7 {[%clk 0:00:05.7]} 27... Rxd7 {[%clk 0:00:07.3]} 28.
Rbd1 {[%clk 0:00:05.7]} 28... Nde5 {[%clk 0:00:06]} 29. Rxd7+ {[%clk 0:00:05.5]}
29... Nxd7 {[%clk 0:00:06.9]} 30. Rd1 {[%clk 0:00:05.7]} 30... Nde5 {[%clk
0:00:07]} 31. Rd5 {[%clk 0:00:05.2]} 31... Ke6 {[%clk 0:00:06.3]} 32. Kg2 {[%clk
0:00:05.2]} 32... g5 {[%clk 0:00:06.1]} 33. Rd8 {[%clk 0:00:05.3]} 33... g4
{[%clk 0:00:05.5]} 34. Re8+ {[%clk 0:00:05.7]} 34... Kf7 {[%clk 0:00:05]} 35.
Ra8 {[%clk 0:00:06.6]} 35... h5 {[%clk 0:00:02.4]} 36. Rxa7+ {[%clk 0:00:07.1]}
36... Ke6 {[%clk 0:00:02.8]} 37. Ra6 {[%clk 0:00:06.8]} 37... Nf3 {[%clk
0:00:02.1]} 38. a5 {[%clk 0:00:06.6]} 1-0

[Event "Early-Titled-Tuesday-Blitz-April-23-2024"]
[Site "Chess.com"]
[Date "2024.04.23"]
[Round "11"]
[White "DvaHrasta"]
[Black "Statham_01"]
[Result "1-0"]
[WhiteElo "2447"]
[BlackElo "2554"]
[TimeControl "180+1"]
[EndTime "10:11:44 PDT"]
[Termination "DvaHrasta won on time"]

1. c4 {[%clk 0:03:00.9]} 1... e5 {[%clk 0:02:59.5]} 2. g3 {[%clk 0:03:00.8]}
2... c6 {[%clk 0:02:58.4]} 3. d4 {[%clk 0:02:59.3]} 3... exd4 {[%clk 0:02:58.5]}
4. Qxd4 {[%clk 0:02:58.7]} 4... d5 {[%clk 0:02:59.2]} 5. Bg2 {[%clk 0:02:58.8]}
5... Nf6 {[%clk 0:02:59.3]} 6. Nf3 {[%clk 0:02:57.6]} 6... Na6 {[%clk
0:02:57.7]} 7. O-O {[%clk 0:02:55.5]} 7... Bc5 {[%clk 0:02:55.7]} 8. Qe5+ {[%clk
0:02:54.5]} 8... Be6 {[%clk 0:02:55.8]} 9. cxd5 {[%clk 0:02:53.7]} 9... cxd5
{[%clk 0:02:54.5]} 10. Bg5 {[%clk 0:02:50.5]} 10... Be7 {[%clk 0:02:49]} 11. Nc3
{[%clk 0:02:46.4]} 11... h6 {[%clk 0:02:47.5]} 12. Bxf6 {[%clk 0:02:41.9]} 12...
Bxf6 {[%clk 0:02:48.4]} 13. Qf4 {[%clk 0:02:39.9]} 13... O-O {[%clk 0:02:42]}
14. Rfd1 {[%clk 0:02:39.7]} 14... Qa5 {[%clk 0:02:25.6]} 15. Nd4 {[%clk
0:02:30.4]} 15... Bg5 {[%clk 0:02:04.2]} 16. Qf3 {[%clk 0:02:23.7]} 16... Rad8
{[%clk 0:01:57.7]} 17. a3 {[%clk 0:02:11.1]} 17... Nc7 {[%clk 0:01:52.1]} 18. b4
{[%clk 0:02:07.9]} 18... Qa6 {[%clk 0:01:52.6]} 19. Nb3 {[%clk 0:01:55.5]} 19...
Bf6 {[%clk 0:01:46.6]} 20. Nc5 {[%clk 0:01:51.8]} 20... Qc6 {[%clk 0:01:40.8]}
21. Rac1 {[%clk 0:01:44.1]} 21... b6 {[%clk 0:01:28.7]} 22. Nb3 {[%clk
0:01:38.2]} 22... Nb5 {[%clk 0:01:17.9]} 23. Nxb5 {[%clk 0:01:28.2]} 23... Qxb5
{[%clk 0:01:18.8]} 24. Nd4 {[%clk 0:01:26.5]} 24... Qd7 {[%clk 0:01:18.9]} 25.
Nxe6 {[%clk 0:01:18.4]} 25... fxe6 {[%clk 0:01:19.8]} 26. Qd3 {[%clk 0:01:15.5]}
26... Qf7 {[%clk 0:01:16.9]} 27. f4 {[%clk 0:01:12.5]} 27... Kh8 {[%clk
0:01:12.4]} 28. Rc6 {[%clk 0:01:09.4]} 28... Rde8 {[%clk 0:01:02.4]} 29. Rdc1
{[%clk 0:01:06.8]} 29... Re7 {[%clk 0:00:55]} 30. Rc8 {[%clk 0:01:06.1]} 30...
Rxc8 {[%clk 0:00:50.8]} 31. Rxc8+ {[%clk 0:01:05.8]} 31... Re8 {[%clk
0:00:51.4]} 32. Qa6 {[%clk 0:00:55.6]} 32... Rxc8 {[%clk 0:00:47.1]} 33. Qxc8+
{[%clk 0:00:55.2]} 33... Kh7 {[%clk 0:00:47.8]} 34. e4 {[%clk 0:00:49.9]} 34...
Qh5 {[%clk 0:00:44.4]} 35. Qc2 {[%clk 0:00:41.3]} 35... Bd4+ {[%clk 0:00:36.8]}
36. Kh1 {[%clk 0:00:40.3]} 36... Qg6 {[%clk 0:00:19.7]} 37. Bf3 {[%clk
0:00:36.5]} 37... a5 {[%clk 0:00:14.8]} 38. bxa5 {[%clk 0:00:34]} 38... bxa5
{[%clk 0:00:15.7]} 39. Kg2 {[%clk 0:00:34.2]} 39... h5 {[%clk 0:00:12.5]} 40. h4
{[%clk 0:00:30.6]} 40... Be3 {[%clk 0:00:10.2]} 41. f5 {[%clk 0:00:29.5]} 41...
exf5 {[%clk 0:00:06.5]} 42. exf5 {[%clk 0:00:29.6]} 42... Qf6 {[%clk 0:00:06.2]}
43. Bxh5 {[%clk 0:00:26.8]} 43... Bb6 {[%clk 0:00:04.5]} 44. Bg6+ {[%clk
0:00:26]} 44... Kg8 {[%clk 0:00:04.5]} 45. Qc8+ {[%clk 0:00:25.3]} 45... Bd8
{[%clk 0:00:04.8]} 46. Qd7 {[%clk 0:00:22.3]} 46... d4 {[%clk 0:00:03.3]} 47.
Qe8+ {[%clk 0:00:22.4]} 47... Qf8 {[%clk 0:00:03.9]} 48. Bh7+ {[%clk 0:00:22.6]}
1-0

[Event "Early-Titled-Tuesday-Blitz-April-23-2024"]
[Site "Chess.com"]
[Date "2024.04.23"]
[Round "11"]
[White "Elegance_Riks"]
[Black "Stanbad1"]
[Result "1-0"]
[WhiteElo "2791"]
[BlackElo "2641"]
[TimeControl "180+1"]
[EndTime "10:11:46 PDT"]
[Termination "Elegance_Riks won by checkmate"]

1. b3 {[%clk 0:03:00.9]} 1... Nf6 {[%clk 0:02:57.5]} 2. Bb2 {[%clk 0:02:58.7]}
2... g6 {[%clk 0:02:58]} 3. Nf3 {[%clk 0:02:58.5]} 3... Bg7 {[%clk 0:02:58]} 4.
g3 {[%clk 0:02:59]} 4... d6 {[%clk 0:02:58]} 5. d4 {[%clk 0:02:54.8]} 5... O-O
{[%clk 0:02:58.1]} 6. Bg2 {[%clk 0:02:54.5]} 6... c5 {[%clk 0:02:57.6]} 7. c4
{[%clk 0:02:36.3]} 7... Nc6 {[%clk 0:02:54.6]} 8. d5 {[%clk 0:02:33.4]} 8... Na5
{[%clk 0:02:54.4]} 9. O-O {[%clk 0:02:32.5]} 9... a6 {[%clk 0:02:54.2]} 10. Nbd2
{[%clk 0:02:31.1]} 10... b5 {[%clk 0:02:53.9]} 11. e4 {[%clk 0:02:30.7]} 11...
Rb8 {[%clk 0:02:53.6]} 12. e5 {[%clk 0:02:30]} 12... Ng4 {[%clk 0:02:49.9]} 13.
Qe1 {[%clk 0:02:28.3]} 13... bxc4 {[%clk 0:02:48.3]} 14. exd6 {[%clk 0:02:25.7]}
14... exd6 {[%clk 0:02:40.9]} 15. Bxg7 {[%clk 0:02:24.8]} 15... Kxg7 {[%clk
0:02:41.3]} 16. bxc4 {[%clk 0:02:24.6]} 16... Re8 {[%clk 0:02:41.4]} 17. Qc1
{[%clk 0:02:20.2]} 17... Qf6 {[%clk 0:02:40.8]} 18. Qa3 {[%clk 0:02:07.3]} 18...
Nb7 {[%clk 0:02:23.6]} 19. Rfe1 {[%clk 0:02:01.2]} 19... Bf5 {[%clk 0:02:21.2]}
20. h3 {[%clk 0:01:55.4]} 20... Ne5 {[%clk 0:02:17.9]} 21. Nxe5 {[%clk
0:01:54.6]} 21... Rxe5 {[%clk 0:02:17.3]} 22. Nf1 {[%clk 0:01:54.6]} 22... Nd8
{[%clk 0:02:12.1]} 23. Ne3 {[%clk 0:01:50.3]} 23... Bc8 {[%clk 0:02:09.1]} 24.
Rab1 {[%clk 0:01:47.6]} 24... Rxb1 {[%clk 0:02:02.8]} 25. Rxb1 {[%clk
0:01:48.5]} 25... Qe7 {[%clk 0:01:58.7]} 26. Qb2 {[%clk 0:01:45.5]} 26... f6
{[%clk 0:01:58.2]} 27. Qb8 {[%clk 0:01:43.1]} 27... Qd7 {[%clk 0:01:55.9]} 28.
Rb6 {[%clk 0:01:42.1]} 28... Nf7 {[%clk 0:01:55.7]} 29. Rc6 {[%clk 0:01:39.4]}
29... Re8 {[%clk 0:01:52.6]} 30. Rc7 {[%clk 0:01:37.4]} 30... Qd8 {[%clk
0:01:52.7]} 31. Qa7 {[%clk 0:01:35.3]} 31... Rf8 {[%clk 0:01:50.2]} 32. h4
{[%clk 0:01:29.8]} 32... h5 {[%clk 0:01:47.9]} 33. Bf3 {[%clk 0:01:25.4]} 33...
Kg8 {[%clk 0:01:44.6]} 34. Kg2 {[%clk 0:01:16.5]} 34... f5 {[%clk 0:01:37.3]}
35. Re7 {[%clk 0:01:15.9]} 35... Kg7 {[%clk 0:01:29.1]} 36. Kg1 {[%clk
0:01:13.5]} 36... Kf6 {[%clk 0:01:29]} 37. Rc7 {[%clk 0:01:09.8]} 37... Ne5
{[%clk 0:01:26.2]} 38. Be2 {[%clk 0:01:09.9]} 38... Rf7 {[%clk 0:01:26]} 39.
Rxf7+ {[%clk 0:01:09.3]} 39... Nxf7 {[%clk 0:01:26.9]} 40. Qb8 {[%clk 0:01:06]}
40... Qe8 {[%clk 0:01:25]} 41. Bf1 {[%clk 0:01:02.9]} 41... Bd7 {[%clk
0:01:21.9]} 42. Qc7 {[%clk 0:01:00.2]} 42... Qd8 {[%clk 0:01:17.1]} 43. Qb7
{[%clk 0:00:59.5]} 43... Qc8 {[%clk 0:01:09.5]} 44. Qb2+ {[%clk 0:00:57.2]}
44... Ke7 {[%clk 0:01:04.6]} 45. Qg7 {[%clk 0:00:57.3]} 45... f4 {[%clk
0:01:03.8]} 46. gxf4 {[%clk 0:00:55.1]} 46... Bf5 {[%clk 0:01:04.1]} 47. a4
{[%clk 0:00:48.8]} 47... Qd7 {[%clk 0:01:02.2]} 48. a5 {[%clk 0:00:46.8]} 48...
Qc8 {[%clk 0:01:01.9]} 49. Kh2 {[%clk 0:00:43.8]} 49... Qd7 {[%clk 0:00:59.4]}
50. Be2 {[%clk 0:00:43.5]} 50... Qc8 {[%clk 0:00:58.9]} 51. Bf3 {[%clk
0:00:40.4]} 51... Qd7 {[%clk 0:00:48.9]} 52. Bd1 {[%clk 0:00:39.9]} 52... Be4
{[%clk 0:00:43.7]} 53. Kg3 {[%clk 0:00:39.6]} 53... Qd8 {[%clk 0:00:35.4]} 54.
f5 {[%clk 0:00:34.9]} 54... Qh8 {[%clk 0:00:14.6]} 55. f6+ {[%clk 0:00:31.7]}
55... Ke8 {[%clk 0:00:14.4]} 56. Kf4 {[%clk 0:00:30]} 56... Bb1 {[%clk
0:00:13.8]} 57. Ba4+ {[%clk 0:00:29.7]} 57... Kd8 {[%clk 0:00:13.3]} 58. Qxf7
{[%clk 0:00:29.2]} 58... Qh6+ {[%clk 0:00:13.3]} 59. Kg3 {[%clk 0:00:29.7]}
59... g5 {[%clk 0:00:13.6]} 60. Qd7# {[%clk 0:00:29.9]} 1-0

[Event "Early-Titled-Tuesday-Blitz-April-23-2024"]
[Site "Chess.com"]
[Date "2024.04.23"]
[Round "11"]
[White "ProtectiveCarrot"]
[Black "EddieMarsalla"]
[Result "0-1"]
[WhiteElo "2416"]
[BlackElo "2676"]
[TimeControl "180+1"]
[EndTime "10:11:48 PDT"]
[Termination "EddieMarsalla won on time"]

1. e4 {[%clk 0:03:00.9]} 1... d5 {[%clk 0:02:57.8]} 2. exd5 {[%clk 0:03:00.7]}
2... Qxd5 {[%clk 0:02:58.7]} 3. Nc3 {[%clk 0:03:01.1]} 3... Qe5+ {[%clk
0:02:59.2]} 4. Be2 {[%clk 0:02:59.1]} 4... c6 {[%clk 0:02:59.2]} 5. Nf3 {[%clk
0:02:55.9]} 5... Qc7 {[%clk 0:02:59.7]} 6. d4 {[%clk 0:02:55]} 6... Bf5 {[%clk
0:03:00.3]} 7. O-O {[%clk 0:02:47.2]} 7... e6 {[%clk 0:03:00.1]} 8. Ne5 {[%clk
0:02:41]} 8... Nd7 {[%clk 0:02:58.6]} 9. f4 {[%clk 0:02:39.1]} 9... Ngf6 {[%clk
0:02:52]} 10. Be3 {[%clk 0:02:36.6]} 10... h6 {[%clk 0:02:46.2]} 11. Bc4 {[%clk
0:02:09.7]} 11... O-O-O {[%clk 0:02:34.2]} 12. Nxf7 {[%clk 0:02:07.5]} 12... Nb6
{[%clk 0:02:34.5]} 13. Bxe6+ {[%clk 0:01:42.7]} 13... Bxe6 {[%clk 0:02:32.1]}
14. Nxh8 {[%clk 0:01:43.3]} 14... Bf5 {[%clk 0:02:22.4]} 15. Qf3 {[%clk
0:01:22.1]} 15... Bd6 {[%clk 0:02:08.4]} 16. b3 {[%clk 0:01:14.1]} 16... Rxh8
{[%clk 0:02:06.7]} 17. a4 {[%clk 0:01:14.3]} 17... Bb4 {[%clk 0:01:57.2]} 18.
Na2 {[%clk 0:01:11.6]} 18... Ba3 {[%clk 0:01:49]} 19. c4 {[%clk 0:01:08.4]}
19... Rd8 {[%clk 0:01:37.5]} 20. Rae1 {[%clk 0:01:00.5]} 20... Bf8 {[%clk
0:01:16.2]} 21. Nc3 {[%clk 0:01:00]} 21... Bb4 {[%clk 0:01:14.7]} 22. Bf2 {[%clk
0:01:00.2]} 22... Ng4 {[%clk 0:01:11.7]} 23. Rc1 {[%clk 0:00:55.9]} 23... Nxf2
{[%clk 0:01:03.5]} 24. Qxf2 {[%clk 0:00:56.8]} 24... Nd7 {[%clk 0:00:59]} 25.
Rfd1 {[%clk 0:00:53.6]} 25... Nf6 {[%clk 0:00:56.4]} 26. Qe3 {[%clk 0:00:35.9]}
26... Re8 {[%clk 0:00:54.1]} 27. Qg3 {[%clk 0:00:34]} 27... Nh5 {[%clk
0:00:45.3]} 28. Qf3 {[%clk 0:00:26.8]} 28... Nxf4 {[%clk 0:00:38.8]} 29. Kh1
{[%clk 0:00:27.4]} 29... g5 {[%clk 0:00:37.3]} 30. d5 {[%clk 0:00:25.6]} 30...
g4 {[%clk 0:00:30.1]} 31. Qf2 {[%clk 0:00:20.6]} 31... Bxc3 {[%clk 0:00:26.3]}
32. Rxc3 {[%clk 0:00:20.2]} 32... Be4 {[%clk 0:00:26.7]} 33. d6 {[%clk
0:00:18.3]} 33... Bxg2+ {[%clk 0:00:15.8]} 34. Qxg2 {[%clk 0:00:15.9]} 34...
Nxg2 {[%clk 0:00:14.7]} 35. dxc7 {[%clk 0:00:15.6]} 35... Nf4 {[%clk 0:00:11.4]}
36. Rf1 {[%clk 0:00:09.6]} 36... Nh3 {[%clk 0:00:08]} 37. Rg3 {[%clk 0:00:07.5]}
37... Kxc7 {[%clk 0:00:05.5]} 38. Rxg4 {[%clk 0:00:07.2]} 38... Kb6 {[%clk
0:00:03.5]} 39. Rh4 {[%clk 0:00:05.8]} 39... Re3 {[%clk 0:00:02.2]} 40. Rxh6
{[%clk 0:00:04.5]} 40... Rxb3 {[%clk 0:00:02.2]} 41. Rh7 {[%clk 0:00:02]} 41...
Ng5 {[%clk 0:00:02.1]} 0-1

[Event "Early-Titled-Tuesday-Blitz-April-23-2024"]
[Site "Chess.com"]
[Date "2024.04.23"]
[Round "11"]
[White "klifus"]
[Black "GlennTipton"]
[Result "0-1"]
[WhiteElo "2191"]
[BlackElo "2502"]
[TimeControl "180+1"]
[EndTime "10:11:51 PDT"]
[Termination "GlennTipton won by checkmate"]

1. Nf3 {[%clk 0:03:00.9]} 1... Nf6 {[%clk 0:02:59.8]} 2. g3 {[%clk 0:03:00]}
2... c6 {[%clk 0:03:00.7]} 3. Bg2 {[%clk 0:02:59.2]} 3... d5 {[%clk 0:03:01.6]}
4. O-O {[%clk 0:02:57.9]} 4... Bf5 {[%clk 0:03:02]} 5. c4 {[%clk 0:02:55.2]}
5... e6 {[%clk 0:03:02.3]} 6. cxd5 {[%clk 0:02:53.4]} 6... cxd5 {[%clk
0:03:02.3]} 7. Qb3 {[%clk 0:02:38.5]} 7... Qb6 {[%clk 0:03:01.9]} 8. Qxb6 {[%clk
0:02:37.7]} 8... axb6 {[%clk 0:03:02]} 9. d3 {[%clk 0:02:36.7]} 9... h6 {[%clk
0:02:58.2]} 10. Nd4 {[%clk 0:02:31.7]} 10... Bh7 {[%clk 0:02:53.4]} 11. Nb5
{[%clk 0:02:31.3]} 11... Kd7 {[%clk 0:02:48.9]} 12. Bf4 {[%clk 0:02:29]} 12...
Nc6 {[%clk 0:02:40.1]} 13. N1c3 {[%clk 0:02:02]} 13... Be7 {[%clk 0:02:27.5]}
14. e4 {[%clk 0:02:01]} 14... d4 {[%clk 0:02:27]} 15. Ne2 {[%clk 0:01:51]} 15...
e5 {[%clk 0:02:21]} 16. Bh3+ {[%clk 0:01:49.9]} 16... Kd8 {[%clk 0:02:16.8]} 17.
Bd2 {[%clk 0:01:49.6]} 17... Nd7 {[%clk 0:02:03.1]} 18. f4 {[%clk 0:01:47.9]}
18... f6 {[%clk 0:01:47.2]} 19. Bxd7 {[%clk 0:01:38.2]} 19... Kxd7 {[%clk
0:01:48.1]} 20. a3 {[%clk 0:01:32.2]} 20... Rhf8 {[%clk 0:01:38.5]} 21. Rac1
{[%clk 0:01:28.2]} 21... Bg8 {[%clk 0:01:36.7]} 22. fxe5 {[%clk 0:01:16.1]}
22... fxe5 {[%clk 0:01:35.9]} 23. Rxf8 {[%clk 0:01:05.8]} 23... Rxf8 {[%clk
0:01:32.9]} 24. Kg2 {[%clk 0:01:05.6]} 24... Bb3 {[%clk 0:01:32.2]} 25. Bb4
{[%clk 0:00:49.7]} 25... Bxb4 {[%clk 0:01:00.5]} 26. axb4 {[%clk 0:00:48.2]}
26... Ba4 {[%clk 0:01:00.4]} 27. Na3 {[%clk 0:00:46.1]} 27... Nxb4 {[%clk
0:00:55.5]} 28. Nc4 {[%clk 0:00:45.2]} 28... Nxd3 {[%clk 0:00:53.8]} 29. Nxb6+
{[%clk 0:00:44.9]} 29... Ke6 {[%clk 0:00:51.5]} 30. Nxa4 {[%clk 0:00:44.2]}
30... Rf2+ {[%clk 0:00:49.7]} 31. Kg1 {[%clk 0:00:43.9]} 31... Rxe2 {[%clk
0:00:49.7]} 32. Rc7 {[%clk 0:00:42.5]} 32... Nxb2 {[%clk 0:00:40.7]} 33. Nxb2
{[%clk 0:00:38.4]} 33... Rxb2 {[%clk 0:00:40.4]} 34. Rxg7 {[%clk 0:00:38.3]}
34... d3 {[%clk 0:00:40.5]} 35. Rg6+ {[%clk 0:00:38.2]} 35... Kd7 {[%clk
0:00:40.4]} 36. Kf1 {[%clk 0:00:36]} 36... Rxh2 {[%clk 0:00:38.3]} 37. Ke1
{[%clk 0:00:33.5]} 37... Re2+ {[%clk 0:00:33.3]} 38. Kd1 {[%clk 0:00:31.9]}
38... Rxe4 {[%clk 0:00:33.5]} 39. Kd2 {[%clk 0:00:32]} 39... Rd4 {[%clk
0:00:32.2]} 40. Rxh6 {[%clk 0:00:32.2]} 40... e4 {[%clk 0:00:29.8]} 41. Rh7+
{[%clk 0:00:32.1]} 41... Kc6 {[%clk 0:00:29.8]} 42. Rh6+ {[%clk 0:00:32.1]}
42... Rd6 {[%clk 0:00:28]} 43. Rh4 {[%clk 0:00:31.3]} 43... Re6 {[%clk 0:00:28]}
44. Ke3 {[%clk 0:00:30.7]} 44... b5 {[%clk 0:00:27.4]} 45. g4 {[%clk 0:00:29.5]}
45... b4 {[%clk 0:00:27.7]} 46. Rh2 {[%clk 0:00:29]} 46... Kd5 {[%clk
0:00:26.3]} 47. Rb2 {[%clk 0:00:27.3]} 47... Kc4 {[%clk 0:00:26.2]} 48. g5
{[%clk 0:00:26.6]} 48... b3 {[%clk 0:00:26]} 49. Rg2 {[%clk 0:00:26.6]} 49...
Kc3 {[%clk 0:00:22.6]} 50. g6 {[%clk 0:00:26.8]} 50... b2 {[%clk 0:00:23.1]} 51.
Rg1 {[%clk 0:00:25.6]} 51... Rxg6 {[%clk 0:00:20.6]} 52. Rb1 {[%clk 0:00:25.3]}
52... Kc2 {[%clk 0:00:19.1]} 53. Rxb2+ {[%clk 0:00:25.5]} 53... Kxb2 {[%clk
0:00:19.3]} 54. Kxe4 {[%clk 0:00:25.9]} 54... d2 {[%clk 0:00:19.4]} 55. Kf5
{[%clk 0:00:26.2]} 55... Rg2 {[%clk 0:00:17.6]} 56. Kf4 {[%clk 0:00:26]} 56...
d1=Q {[%clk 0:00:18.5]} 57. Ke3 {[%clk 0:00:24.2]} 57... Re2+ {[%clk 0:00:19.4]}
58. Kf4 {[%clk 0:00:24]} 58... Qf1+ {[%clk 0:00:20.3]} 59. Kg3 {[%clk
0:00:23.9]} 59... Rg2+ {[%clk 0:00:21.2]} 60. Kh3 {[%clk 0:00:23.4]} 60... Qh1#
{[%clk 0:00:22.1]} 0-1

[Event "Early-Titled-Tuesday-Blitz-April-23-2024"]
[Site "Chess.com"]
[Date "2024.04.23"]
[Round "11"]
[White "wonderfultime"]
[Black "HansOnTwitch"]
[Result "1-0"]
[WhiteElo "3085"]
[BlackElo "3214"]
[TimeControl "180+1"]
[EndTime "10:11:53 PDT"]
[Termination "wonderfultime won by checkmate"]

1. d4 {[%clk 0:03:00.9]} 1... Nf6 {[%clk 0:02:59.9]} 2. Nf3 {[%clk 0:03:01.1]}
2... d5 {[%clk 0:03:00.1]} 3. Bf4 {[%clk 0:03:01.3]} 3... c5 {[%clk 0:02:59.9]}
4. c3 {[%clk 0:03:01.6]} 4... Qb6 {[%clk 0:02:57.2]} 5. Qc2 {[%clk 0:03:01.7]}
5... Nc6 {[%clk 0:02:51.6]} 6. e3 {[%clk 0:03:01.9]} 6... Bg4 {[%clk 0:02:48.3]}
7. dxc5 {[%clk 0:02:58.7]} 7... Qxc5 {[%clk 0:02:48]} 8. Nbd2 {[%clk 0:02:59.5]}
8... e6 {[%clk 0:02:25]} 9. b4 {[%clk 0:02:59.5]} 9... Qb6 {[%clk 0:02:23.9]}
10. a3 {[%clk 0:02:52.1]} 10... Nh5 {[%clk 0:02:05.2]} 11. Bg3 {[%clk 0:02:45]}
11... Nxg3 {[%clk 0:01:55]} 12. hxg3 {[%clk 0:02:45.9]} 12... Bxf3 {[%clk
0:01:55.4]} 13. gxf3 {[%clk 0:02:12.5]} 13... g6 {[%clk 0:01:54.1]} 14. c4
{[%clk 0:02:13]} 14... Bg7 {[%clk 0:01:52.2]} 15. Rd1 {[%clk 0:02:09.5]} 15...
O-O {[%clk 0:01:49.5]} 16. f4 {[%clk 0:01:19.7]} 16... Rac8 {[%clk 0:01:44.1]}
17. Qb3 {[%clk 0:01:15.3]} 17... a5 {[%clk 0:01:35.5]} 18. c5 {[%clk 0:01:11.4]}
18... Qc7 {[%clk 0:01:24.7]} 19. Be2 {[%clk 0:00:49]} 19... axb4 {[%clk
0:01:23.9]} 20. axb4 {[%clk 0:00:49.9]} 20... b6 {[%clk 0:01:24.5]} 21. cxb6
{[%clk 0:00:43.8]} 21... Qxb6 {[%clk 0:01:24.4]} 22. b5 {[%clk 0:00:44.5]} 22...
Na5 {[%clk 0:01:23.9]} 23. Qa4 {[%clk 0:00:39.4]} 23... Ra8 {[%clk 0:01:21.5]}
24. Qb4 {[%clk 0:00:35]} 24... Rfc8 {[%clk 0:01:19.7]} 25. O-O {[%clk
0:00:34.7]} 25... Bc3 {[%clk 0:01:17.9]} 26. Qb1 {[%clk 0:00:34.7]} 26... Nb7
{[%clk 0:01:13.3]} 27. Nf3 {[%clk 0:00:30.4]} 27... Nd6 {[%clk 0:01:12.3]} 28.
Kg2 {[%clk 0:00:30.5]} 28... Ra4 {[%clk 0:01:09.3]} 29. Rc1 {[%clk 0:00:24.8]}
29... Rc5 {[%clk 0:00:43.3]} 30. Qd3 {[%clk 0:00:23.3]} 30... Ra3 {[%clk
0:00:42.9]} 31. Qd1 {[%clk 0:00:23.4]} 31... Kg7 {[%clk 0:00:40.1]} 32. Nd4
{[%clk 0:00:21.7]} 32... Ra2 {[%clk 0:00:34.5]} 33. Rc2 {[%clk 0:00:19.2]} 33...
Rxc2 {[%clk 0:00:33.1]} 34. Nxc2 {[%clk 0:00:20.1]} 34... Nxb5 {[%clk
0:00:32.3]} 35. Ne1 {[%clk 0:00:20.1]} 35... Bxe1 {[%clk 0:00:31.4]} 36. Qxe1
{[%clk 0:00:19.6]} 36... Nc3 {[%clk 0:00:31.6]} 37. Bf3 {[%clk 0:00:20.1]} 37...
Qb2 {[%clk 0:00:27.7]} 38. Rh1 {[%clk 0:00:20.7]} 38... Ra5 {[%clk 0:00:20.6]}
39. g4 {[%clk 0:00:19.1]} 39... h6 {[%clk 0:00:18.9]} 40. Kg3 {[%clk 0:00:19.6]}
40... Ra2 {[%clk 0:00:18.6]} 41. Qg1 {[%clk 0:00:16.8]} 41... d4 {[%clk
0:00:10.8]} 42. Qh2 {[%clk 0:00:15.4]} 42... Kg8 {[%clk 0:00:09]} 43. f5 {[%clk
0:00:08.6]} 43... dxe3 {[%clk 0:00:06.2]} 44. fxg6 {[%clk 0:00:08.9]} 44... fxg6
{[%clk 0:00:04.8]} 45. Qxh6 {[%clk 0:00:06.3]} 45... Qxf2+ {[%clk 0:00:04.7]}
46. Kf4 {[%clk 0:00:07.1]} 46... Nd5+ {[%clk 0:00:03.9]} 47. Kg5 {[%clk
0:00:06.1]} 47... Qxf3 {[%clk 0:00:03.2]} 48. Qh8+ {[%clk 0:00:06.5]} 48... Kf7
{[%clk 0:00:03.1]} 49. Rh7# {[%clk 0:00:07.4]} 1-0